Cogmind - Beta 9.4 @@@ ROGUE MODE // 2020.03.14 @ 14:51:34 Player: JerichoBot Result: Destroyed by S-10 Pest with Light Assault Rifle Performance ------------- Evolutions (1) 500 Regions Visited (2) 400 Robots Destroyed (39) 195 Value Destroyed (956) 956 Prototype IDs (0) 0 Alien Tech Used (0) 0 Bonus (0) 0 TOTAL SCORE: 2051 Bonus ------- None Cogmind --------- Core Integrity 0/400 Matter 295/300 Energy 532/550 System Corruption 0% Temperature Cool (2) Movement Treading (160) Location -9/Materials Parts ------- > --- POWER (1) -------- Ion Engine > --- PROPULSION (3) --- Light Treads Light Treads > --- UTILITY (3) ------ Small Storage Unit Compact Battery > --- WEAPON (2) ------- Katana > --- INVENTORY (6) ---- Aluminum Leg Peak State ------------ > --- POWER ------------ Light Nuclear Core > --- PROPULSION ------- Aluminum Leg Aluminum Leg Improved Aluminum Leg > --- UTILITY ---------- Cooling System Small Storage Unit Light Armor Plating > --- WEAPON ----------- Heavy Assault Rifle Katana > --- INVENTORY -------- Light Nuclear Core Light Treads Light Treads Compact Battery Autogun Shotgun [Rating: 17] Favorites ----------- Power Light Ion Engine Engine Light Ion Engine Power Core Light Nuclear Core Propulsion Aluminum Leg Treads Light Treads Leg Aluminum Leg Utility Small Storage Unit Device Improved Terrain Scanner Storage Small Storage Unit Protection Light Armor Plating Weapon Assault Rifle Energy Gun Particle Gun Ballistic Gun Assault Rifle Launcher Grenade Launcher Slashing Weapon Katana Build | -11 -10 -9 ------- Run | Scr Mat Mat Slots Evolved 2 | . . 2 Power . | . . . Propulsion 1 | . . 1 Utility 1 | . . 1 Weapon . | . . . Parts Attached 61 | 7 14 40 Power 8 | 1 2 5 Engine 6 | 1 2 3 Core 2 | . . 2 Reactor . | . . . Propulsion 18 | 2 5 11 Treads 2 | . . 2 Leg 16 | 2 5 9 Wheel . | . . . Hover . | . . . Flight . | . . . Utility 8 | 2 . 6 Device 3 | 1 . 2 Storage 4 | 1 . 3 Processor . | . . . Hackware . | . . . Protection 1 | . . 1 Artifact . | . . . Weapon 27 | 2 7 18 Energy Gun 9 | 1 2 6 Energy Cannon . | . . . Ballistic Gun 14 | 1 5 8 Ballistic Cannon . | . . . Launcher 2 | . . 2 Special Weapon . | . . . Impact Weapon . | . . . Slashing Weapon 2 | . . 2 Piercing Weapon . | . . . Special Melee Weapon . | . . . Unidentified Prototypes . | . . . Parts Lost 20 | . 4 16 Power 3 | . 1 2 Propulsion 4 | . . 4 Utility 4 | . . 4 Weapon 9 | . 3 6 Highest Loss Streak 8 | . 2 8 Average Slot Usage (%) 94 | . 97 92 Engine 9 | . 12 5 Core 2 | . . 5 Leg 29 | . 28 30 Device 12 | . 14 11 Storage 14 | . 14 14 Protection 1 | . . 2 Energy Gun 7 | . 8 5 Ballistic Gun 14 | . 18 10 Slashing Weapon 2 | . . 4 Naked Turns . | . . . Heaviest Build 20 | 12 12 20 Greatest Support 40 | 20 20 40 Greatest Overweight (x) 2 | 2 . . Average Overweight (x) . | . . . Largest Inventory Capacity 6 | 6 6 6 Average Capacity 5 | 5 6 6 Most Carried 6 | 5 6 6 Average Carried 5 | 3 5 5 Final Capacity 6 | 6 6 6 Final Carried 6 | 5 6 1 Class Distribution -------------------- 65% | Scavenger-Mutant 34% | Mutant Dominant Class ---------------- Scavenger-Mutant | -10/Materials Scavenger-Mutant | -9/Materials Resources | -11 -10 -9 ----------- Run | Scr Mat Mat Matter Collected 1149 | 262 268 619 Remotely . | . . . Salvage Created 1355 | 42 439 874 Parts 82 | 7 18 57 Haulers Intercepted . | . . . Recyclers Shooed 3 | 1 . 2 Parts Field Recycled . | . . . Retrieved Matter . | . . . Parts Self-Destructed . | . . . Prevented . | . . . Kills | -11 -10 -9 ------- Run | Scr Mat Mat Combat Hostiles Destroyed 29 | . 10 19 Melee 3 | . . 3 Guns 25 | . 10 15 AOE 1 | . . 1 Classes Destroyed 8 | 1 3 4 Worker 5 | . . 5 Tunneler 2 | 2 . . Recycler 2 | . 1 1 Watcher 1 | . . 1 Swarmer 8 | . 3 5 Grunt 17 | . 7 10 Duelist 1 | . . 1 Sentry 3 | . . 3 Best Kill Streak 8 | 2 4 8 Combat Bots Only 7 | . 3 7 Max Kills in Single Turn 2 | 1 1 2 Gunslinging 1 | . . 1 Exploded 1 | . . 1 Melee 1 | . . 1 Uniques/NPCs Destroyed . | . . . Combat | -11 -10 -9 -------- Run | Scr Mat Mat Damage Taken 2750 | . 668 2082 Core 522 | . 120 402 Absorbed by Shields . | . . . Core Remaining (%) 76 | 100 52 . Volleys Fired 138 | 8 36 94 Largest 2 | 2 2 2 Hottest 88 | 70 70 88 Shots Fired 222 | 16 68 138 Gun 218 | 16 68 134 Cannon . | . . . Launcher 4 | . . 4 Special . | . . . Kinetic 166 | 8 53 105 Thermal 52 | 8 15 29 Explosive 4 | . . 4 Electromagnetic . | . . . Robot Hit Streak 17 | 7 17 10 Robot Miss Streak 3 | 3 3 3 Penetration Max . | . . . Secondary Targets 5 | . 2 3 Max Gunslinging Chain 1 | . 1 1 Shots Hit Robots 153 | 9 49 95 Core Hits 61 | 3 19 39 Critical Hits 1 | . . 1 Critical Kills 1 | . . 1 Critical Parts Destroyed . | . . . Melee Attacks 12 | . . 12 Impact . | . . . Slashing 12 | . . 12 Piercing . | . . . Sneak Attacks 3 | . . 3 Combat Hostiles . | . . . Follow-up Attacks . | . . . Damage Inflicted 2468 | 143 532 1793 Guns 1962 | 143 532 1287 Cannons . | . . . Explosions 68 | . . 68 Melee 438 | . . 438 Ramming . | . . . Kinetic 1471 | 66 403 1002 Thermal 491 | 77 129 285 Explosive 68 | . . 68 Electromagnetic . | . . . Impact . | . . . Slashing 438 | . . 438 Piercing . | . . . Highest Corruption . | . . . Average Corruption . | . . . Corruption Purged . | . . . Overload Shots . | . . . Overflow Damage 220 | . . 220 Projectiles . | . . . Explosions 75 | . . 75 Melee 145 | . . 145 Knockbacks . | . . . Impact . | . . . Kinetic . | . . . Secondary . | . . . Self-Inflicted Damage 201 | . . 201 Shots 3 | . . 3 Rammed . | . . . Targets Rammed . | . . . Kicked . | . . . Crushed . | . . . Highest Temperature 93 | 54 93 16 Average Temperature 23 | 23 27 4 Received Heat Transfer 543 | . 243 300 Siege Activations . | . . . Robots Corrupted . | . . . Combat Hostiles . | . . . Parts Fried . | . . . Impact Corruptions . | . . . Robots Melted . | . . . Combat Hostiles . | . . . Parts Melted 1 | . 1 . Heat Transferred 1235 | 222 347 666 Parts Sabotaged . | . . . Parts Stolen . | . . . Parts Stripped . | . . . Power Chain Reactions . | . . . Missiles Intercepted . | . . . Alert | -11 -10 -9 ------- Run | Scr Mat Mat Peak Influence 361 | 10 156 361 Average Influence 123 | 3 62 204 Maximum Alert Level 1 | . . 1 Low Security (%) 79 | 100 100 54 Level 1 20 | . . 45 Level 2 . | . . . Level 3 . | . . . Level 4 . | . . . Level 5 . | . . . High Security . | . . . Max Security . | . . . Squads Dispatched 2 | . 1 1 Investigation . | . . . Extermination . | . . . Reinforcement 2 | . 1 1 Assault . | . . . Garrison . | . . . Intercept . | . . . Construction Impeded . | . . . Haulers Reinforced . | . . . Stealth | -11 -10 -9 --------- Run | Scr Mat Mat Distress Signals 6 | . 2 4 Communications Jammed . | . . . Distress Signals . | . . . Times Spotted 56 | . 18 38 Peak Tracking Total 10 | . 6 10 Tactical Retreats 2 | . . 2 Traps | -11 -10 -9 ------- Run | Scr Mat Mat Traps Triggered . | . . . Indirectly . | . . . Trap Hack Attempts . | . . . Triggered . | . . . Disarmed . | . . . Reprogrammed . | . . . Reused . | . . . Traps Extracted . | . . . Installed . | . . . Triggered . | . . . Machines | -11 -10 -9 ---------- Run | Scr Mat Mat Machines Disabled 3 | . . 3 Max in Single Turn 3 | . . 3 Machines Sabotaged . | . . . Garrisons Compromised . | . . . Overloaded Fab Kills . | . . . Fab Network Shutdowns . | . . . Hacking | -11 -10 -9 --------- Run | Scr Mat Mat Machines Accessed 6 | . 4 2 Terminals 4 | . 3 1 Fabricators . | . . . Repair Stations . | . . . Recycling Units 2 | . 1 1 Scanalyzers . | . . . Garrison Access . | . . . Total Hacks 13 | . 8 5 Successful 8 | . 4 4 Failed 5 | . 4 1 Catastrophic 1 | . 1 . Database Lockouts . | . . . Manual . | . . . Terminals 10 | . 7 3 Fabricators . | . . . Repair Stations . | . . . Recycling Units 3 | . 1 2 Scanalyzers . | . . . Garrison Access . | . . . Terminal Hacks 5 | . 3 2 Record 2 | . . 2 Branch Access Points 1 | . 1 . Investigation Status 1 | . 1 . Reinforcement Status 1 | . 1 . Fabricator Hacks . | . . . Repair Station Hacks . | . . . Recycling Unit Hacks 3 | . 1 2 Report Inventory 2 | . 1 1 Retrieve Components 1 | . . 1 Scanalyzer . | . . . Garrison Access Hacks . | . . . Unauthorized Hacks . | . . . Terminals . | . . . Fabricators . | . . . Repair Stations . | . . . Recycling Units . | . . . Scanalyzers . | . . . Garrison Access . | . . . Data Cores Recovered . | . . . Used . | . . . Hacking Detections 4 | . 2 2 Full Trace Events 2 | . 2 . Feedback Events . | . . . Feedback Blocked . | . . . Robot Schematics Acquired . | . . . Robots Built . | . . . Matter . | . . . Time . | . . . Total Robot Build Rating . | . . . Part Schematics Acquired . | . . . Parts Built . | . . . Matter . | . . . Time . | . . . Total Part Build Rating . | . . . Parts Repaired . | . . . Time . | . . . Parts Recycled . | . . . Recycled Matter . | . . . Retrieved Matter . | . . . Retrieved Components 5 | . . 5 Parts Scanalyzed . | . . . Part Schematics Acquired . | . . . Parts Damaged . | . . . Bothacking | -11 -10 -9 ------------ Run | Scr Mat Mat Used RIF Installer . | . . . Robots Hacked . | . . . Non-combat . | . . . Combat . | . . . Robot Hacks Applied . | . . . Relay Couplers Released . | . . . Robots Rewired . | . . . Allies Hacked . | . . . Hacks Repelled . | . . . Allies | -11 -10 -9 -------- Run | Scr Mat Mat Total Allies . | . . . Largest Group . | . . . Highest-Rated Group . | . . . Highest-Rated Ally . | . . . Total Orders . | . . . Ally Attacks . | . . . Total Damage . | . . . Kills . | . . . Allies Corrupted . | . . . Allies Melted . | . . . Intel | -11 -10 -9 ------- Run | Scr Mat Mat Robot Analysis Total . | . . . Derelict Logs Recovered . | . . . Drone Launches . | . . . Drone Recoveries . | . . . Exploration | -11 -10 -9 ------------- Run | Scr Mat Mat Turns Passed 1630 | 119 757 754 Spaces Moved 906 | 69 501 336 Core 7 | 7 . . Treads 7 | . . 7 Legs 892 | 62 501 329 Wheels . | . . . Hover . | . . . Flight . | . . . Fastest Speed 50 | 50 120 120 Average Speed 119 | 115 120 120 Slowest Speed 160 | 150 120 160 Overloaded Moves . | . . . Propulsion Burnouts . | . . . Robots Hopped . | . . . Cave-ins Triggered . | . . . Exploration Rate (%) 29 | 5 60 24 Regions Visited 2 Branch Regions . Pre-discovered Areas . | . . . Known Exits Taken . | . . . Unknown Exits Taken 2 | 1 1 . Scrap Searched . | . . . Spaces Dug . | . . . Terrain Destroyed 47 | . . 47 Melee . | . . . Projectile . | . . . AOE 47 | . . 47 Actions | -11 -10 -9 --------- Run | Scr Mat Mat Total 1214 | 88 594 532 Wait 36 | . 25 11 Move 904 | 68 500 336 Hop . | . . . Pick Up 31 | 5 9 17 Fast Attach 16 | 7 . 9 Attach 16 | . 4 12 Detach 2 | . . 2 Swap 29 | . 10 19 Drop 30 | . 10 20 Fire 138 | 8 36 94 Melee 12 | . . 12 Ram . | . . . Kick . | . . . Crush . | . . . Escape Stasis . | . . . Rewire . | . . . Trap . | . . . Miscellaneous . | . . . Route ------- -11/Scrapyard -10/Materials (discovered 2 exits: *Mat / *Min) -9/Materials History --------- Turn | Location | Event 17 | -11/Scrapyard | Discovered new exit (range 16) 120 | -11/Scrapyard | Entered Materials 331 | -10/Materials | Discovered new exit (range 16) 734 | -10/Materials | Discovered new exit (range 16) 849 | -10/Materials | Identified exit to Mines 877 | -10/Materials | Entered another Materials area 877 | -9/Materials | Evolved 2 slots: Propulsion x1, Utility x1 1417 | -9/Materials | Core integrity fell below 50% 1438 | -9/Materials | Lost 5 parts (1p1u3w) 1450 | -9/Materials | Destroyed 7 combat bots 1469 | -9/Materials | Build established: Scavenger-Mutant 1583 | -9/Materials | Core integrity fell below 20% 1631 | -9/Materials | Destroyed by S-10 Pest with Light Assault Rifle Last Messages --------------- S-10 Pest destroyed. Aluminum Leg destroyed. K-01 Serf collects debris. R-06 Scavenger collects Flight Unit. Sneak attack on R-06 Scavenger. Destroyed Lgt. Ion Engine. K-01 Serf destroyed. Hvy. Assault Rifle destroyed. Lgt. Nuclear Core destroyed. R-06 Scavenger collects Lgt. Assault Rifle. Aluminum Leg destroyed. Cooling System destroyed. Destroyed Lgt. Assault Rifle. Destroyed Flight Unit. W-16 Scout sends out distress signal. G-34 Mercenary destroyed. Aluminum Leg destroyed. Sml. Laser destroyed. Sml. Matter Pod destroyed. K-01 Serf collects debris. Map ----- +----------------------------------------------------+ | | | | | | | | | | | | | | | | | ?????????????????????????????????????????????????? | | ?????????????????????????????????????????????????? | | ?????????????????????????????????????????????????? | | ?????????????????????????????????????????????????? | | ?????????????????????????????????????????????????? | | ?????????????????????????????????????????????????? | | ?????????????????????????????????????????????????? | | ?????????????????????????????????????????????????? | | ?????????????????????????????????????????????????? | | ?????????????????????????????????????????????????? | | ?????????????????????????????????????????????????? | | ?????????????????????????????????????????????????? | | ???????????????#?????????????????????????????????? | | ???????????????# ???????????????????????????????? | | ???????????????#[ ?????????????????????????????? | | ???????????????# ???????????????????????????? | | ???????????????# k ######???????????????????? | | ???????????????# /@ #???????????????????? | | ?????????????????###+#### #???????????????????? | | ????????????? ###s #???????????????????? | | ????????????? #???????????????????? | | ????????????? ######s#???????????????????? | | ?????????????## ###????????# #???????????????????? | | ???????????????????????????# #???????????????????? | | ???????????????????????????# #???????????????????? | | ???????????????????????????# #?????????? ????????? | | ???????????????????????????# #?????????+##???????? | | ???????????????????????????# #????????? ????????? | | ???????????????????????????# #???????? ????????? | | ???????????????????????????# #???????? ????????? | | ???????????????????????????# #??????? ""?????????? | | ???????????????????????????# ######## """????????? | | ????????????????????######?# =%/ """???????#? | | ????????????????????? ?# #????????? ?? | | ?????????????????????""""" # #########+### | | ?????????????????????""""" # | | ?????????????????????"""""%+ | | ?????????????????# # % | | ?????????????????# ! ### #######+### %##??? | | ?????????????????# ???# #?#! !## #???? | | ?????????????????# ???# #?# ## #???? | | ?????????????????######+#????#+#?# %##= #???? | +----------------------------------------------------+ Best States ------------- Heat Dissipation 50 Energy Generation 14 Energy Capacity 550 Matter Stores 350 Matter Capacity 350 Sight Range 16 Terrain Scan Range 16 Terrain Scan Density 10 Armor Coverage 150 Evasion (%) 40 Recoil Reduction 2 Item Schematics ----------------- None Robot Schematics ------------------ None Fabricated ------------ Nothing Alien Tech Used ----------------- None Achievements -------------- None Challenges ------------ None Game ------ Seed FieldGuidedNegator Manual? 0 Play Time 00:26:45 Cumulative 4.3 hours Start 2020.03.14 @ 14:25:11 End 2020.03.14 @ 14:51:34 Sessions 1 Manual Loads 0 Difficulty Rogue Special Mode None Game No. 8 Rogue 8 Adventurer 0 Explorer 0 Win Type - Total 0 Types 0/0/0/0/0/0/0 Lore% 4 Gallery% 9 Achievement% 8 Wizard Run 0 Options --------- ASCII 0 Keyboard 0 Movement Arrows Keybinds 0 Fullscreen 2 Font 16/SmallcapsGlow Map View 75x55 Tactical HUD 0 Map Filters NONE Filters NONE Steam 0 RUN: 4c38b479-541c-41a0-8384-b27630998f4c